[Event "Live Chess"]
[Site "Chess.com"]
[Date "2024.06.02"]
[Round "-"]
[White "Duke_of_Bebington"]
[Black "TheSmoulderingMaster"]
[Result "1-0"]
[WhiteElo "1628"]
[BlackElo "1751"]
[TimeControl "300"]
[EndTime "17:57:51 PDT"]
[Termination "Duke_of_Bebington won by resignation"]

1. e4 {[%clk 0:04:56.9]} 1... c5 {[%clk 0:04:56.8]} 2. Nf3 {[%clk 0:04:42.7]}
2... d6 {[%clk 0:04:55.6]} 3. d4 {[%clk 0:04:41.7]} 3... d5 {[%clk 0:04:55.5]}
4. exd5 {[%clk 0:04:34.7]} 4... cxd4 {[%clk 0:04:55.4]} 5. c4 {[%clk 0:04:28.7]}
5... dxc3 {[%clk 0:04:53.1]} 6. Nxc3 {[%clk 0:04:27.6]} 6... Nf6 {[%clk
0:04:51.7]} 7. Bc4 {[%clk 0:04:25.5]} 7... Nbd7 {[%clk 0:04:49.5]} 8. O-O {[%clk
0:04:23.1]} 8... Nb6 {[%clk 0:04:48.7]} 9. Bb3 {[%clk 0:04:21.7]} 9... Bd7
{[%clk 0:04:47.1]} 10. Bg5 {[%clk 0:04:13.8]} 10... g6 {[%clk 0:04:45.4]} 11.
Bxf6 {[%clk 0:04:12]} 11... exf6 {[%clk 0:04:44.1]} 12. Re1+ {[%clk 0:04:09.7]}
12... Be7 {[%clk 0:04:43.5]} 13. d6 {[%clk 0:04:04.6]} 13... Be6 {[%clk
0:04:36]} 14. Bxe6 {[%clk 0:03:50.8]} 14... fxe6 {[%clk 0:04:32.1]} 15. dxe7
{[%clk 0:03:47]} 15... Qxe7 {[%clk 0:04:30.3]} 16. Qb3 {[%clk 0:03:39.9]} 16...
e5 {[%clk 0:04:23.6]} 17. Rad1 {[%clk 0:03:32.4]} 17... Kf8 {[%clk 0:04:16.7]}
18. Nd5 {[%clk 0:03:26.4]} 18... Nxd5 {[%clk 0:04:12.7]} 19. Rxd5 {[%clk
0:03:20.5]} 19... Kg7 {[%clk 0:04:09.8]} 20. Red1 {[%clk 0:03:16.3]} 20... Rad8
{[%clk 0:04:06.2]} 21. h3 {[%clk 0:02:54.7]} 21... Qe6 {[%clk 0:03:50]} 22. Rxd8
{[%clk 0:02:47.1]} 22... Qxb3 {[%clk 0:03:47.3]} 23. axb3 {[%clk 0:02:41.4]} 1-0

[Event "Live Chess"]
[Site "Chess.com"]
[Date "2024.06.02"]
[Round "-"]
[White "mychess51"]
[Black "Crowded_House"]
[Result "1-0"]
[WhiteElo "1715"]
[BlackElo "1708"]
[TimeControl "300"]
[EndTime "17:58:30 PDT"]
[Termination "mychess51 won by resignation"]

1. d4 {[%clk 0:04:57.2]} 1... e6 {[%clk 0:04:58.2]} 2. Nf3 {[%clk 0:04:57.1]}
2... d5 {[%clk 0:04:57.3]} 3. g3 {[%clk 0:04:57]} 3... Nf6 {[%clk 0:04:54.4]} 4.
Bg2 {[%clk 0:04:56.9]} 4... c6 {[%clk 0:04:52.7]} 5. O-O {[%clk 0:04:56]} 5...
Bd6 {[%clk 0:04:51.5]} 6. c4 {[%clk 0:04:55.9]} 6... dxc4 {[%clk 0:04:49]} 7.
Nc3 {[%clk 0:04:55.8]} 7... b5 {[%clk 0:04:44.5]} 8. Re1 {[%clk 0:04:55.7]} 8...
O-O {[%clk 0:04:42.6]} 9. a3 {[%clk 0:04:55.6]} 9... Nbd7 {[%clk 0:04:39]} 10.
e4 {[%clk 0:04:55.5]} 10... Bc7 {[%clk 0:04:33.9]} 11. e5 {[%clk 0:04:55.4]}
11... Nd5 {[%clk 0:04:32.5]} 12. Bg5 {[%clk 0:04:36.8]} 12... Qe8 {[%clk
0:04:24.5]} 13. Ne4 {[%clk 0:04:20.6]} 13... Bb7 {[%clk 0:04:15.3]} 14. Nh4
{[%clk 0:04:15.6]} 14... Bd8 {[%clk 0:04:11.3]} 15. Qd2 {[%clk 0:04:05.6]} 15...
Bxg5 {[%clk 0:04:06.5]} 16. Qxg5 {[%clk 0:04:03.2]} 16... Qe7 {[%clk 0:04:05.4]}
17. Qd2 {[%clk 0:03:45.5]} 17... f5 {[%clk 0:03:48.3]} 18. Nd6 {[%clk
0:03:31.5]} 18... Rab8 {[%clk 0:03:35.9]} 19. a4 {[%clk 0:03:26.7]} 19... a6
{[%clk 0:03:33.3]} 20. axb5 {[%clk 0:03:20.6]} 20... axb5 {[%clk 0:03:31.2]} 21.
Ra7 {[%clk 0:03:16.9]} 21... Bc8 {[%clk 0:03:22.1]} 22. Qa5 {[%clk 0:02:52.4]}
22... Qd8 {[%clk 0:03:07.4]} 23. Qa1 {[%clk 0:02:27.9]} 23... Nc7 {[%clk
0:02:56.5]} 24. Bxc6 {[%clk 0:02:23.2]} 24... Rb6 {[%clk 0:02:38.7]} 25. Bg2
{[%clk 0:02:06.4]} 25... Ne8 {[%clk 0:02:36.3]} 26. Nxc8 {[%clk 0:01:35.9]}
26... Qxc8 {[%clk 0:02:33.5]} 27. Qa5 {[%clk 0:01:32]} 27... Rb7 {[%clk
0:02:17.3]} 28. Bxb7 {[%clk 0:01:29.7]} 28... Qb8 {[%clk 0:02:09]} 29. Bg2
{[%clk 0:01:25.9]} 29... Qb6 {[%clk 0:02:03.5]} 30. Qxb6 {[%clk 0:01:19.7]}
30... Nxb6 {[%clk 0:02:02.3]} 31. Rb7 {[%clk 0:01:19]} 31... Nc8 {[%clk
0:01:51.3]} 32. Rxb5 {[%clk 0:01:17.1]} 32... Nc7 {[%clk 0:01:48.8]} 33. Rc5
{[%clk 0:01:15.5]} 33... Rf7 {[%clk 0:01:45.8]} 34. Rxc4 {[%clk 0:01:13.5]}
34... Nb6 {[%clk 0:01:43.2]} 35. Rc6 {[%clk 0:01:10.9]} 35... Re7 {[%clk
0:01:37.1]} 36. Rec1 {[%clk 0:01:08.9]} 36... Ncd5 {[%clk 0:01:36.2]} 37. Bxd5
{[%clk 0:01:06.7]} 37... Nxd5 {[%clk 0:01:34.6]} 38. Rd6 {[%clk 0:01:00.4]}
38... Kf7 {[%clk 0:01:32.4]} 39. Nxf5 {[%clk 0:00:57.6]} 39... exf5 {[%clk
0:01:28.7]} 40. Rxd5 {[%clk 0:00:56]} 40... Rb7 {[%clk 0:01:26.4]} 41. Rc2
{[%clk 0:00:53.7]} 41... Kg6 {[%clk 0:01:23.3]} 42. Rdc5 {[%clk 0:00:51.9]}
42... Kg5 {[%clk 0:01:21.5]} 43. Kg2 {[%clk 0:00:48.7]} 43... Rb4 {[%clk
0:01:19.8]} 44. R5c4 {[%clk 0:00:44.5]} 44... Rb6 {[%clk 0:01:17.3]} 45. f4+
{[%clk 0:00:43.5]} 45... Kg6 {[%clk 0:01:15.9]} 46. Rc6+ {[%clk 0:00:42]} 46...
Kh5 {[%clk 0:01:14.7]} 47. Rxb6 {[%clk 0:00:38.5]} 1-0

[Event "Live Chess"]
[Site "Chess.com"]
[Date "2024.06.02"]
[Round "-"]
[White "MagnersCarlsberg2870"]
[Black "MaksymYurii"]
[Result "1-0"]
[WhiteElo "1768"]
[BlackElo "970"]
[TimeControl "300"]
[EndTime "17:58:37 PDT"]
[Termination "MagnersCarlsberg2870 won by checkmate"]

1. d4 {[%clk 0:04:57.3]} 1... d5 {[%clk 0:04:58.6]} 2. e3 {[%clk 0:04:56.3]}
2... Nc6 {[%clk 0:04:57.3]} 3. Bd3 {[%clk 0:04:54.6]} 3... Nf6 {[%clk
0:04:55.3]} 4. f4 {[%clk 0:04:52.7]} 4... e6 {[%clk 0:04:47.9]} 5. c3 {[%clk
0:04:51.4]} 5... a5 {[%clk 0:04:41.5]} 6. Nd2 {[%clk 0:04:50.3]} 6... b6 {[%clk
0:04:40.6]} 7. Ngf3 {[%clk 0:04:49.2]} 7... Ba6 {[%clk 0:04:38.4]} 8. Qe2 {[%clk
0:04:45.5]} 8... Bxd3 {[%clk 0:04:30.3]} 9. Qxd3 {[%clk 0:04:44.5]} 9... Be7
{[%clk 0:04:02.1]} 10. Qb5 {[%clk 0:04:42.6]} 10... Qd7 {[%clk 0:03:50.5]} 11.
O-O {[%clk 0:04:39]} 11... Na7 {[%clk 0:03:47.7]} 12. Qxd7+ {[%clk 0:04:37.1]}
12... Nxd7 {[%clk 0:03:47.6]} 13. Ne5 {[%clk 0:04:36.1]} 13... Nxe5 {[%clk
0:03:46.1]} 14. fxe5 {[%clk 0:04:35.2]} 14... c5 {[%clk 0:03:35.2]} 15. e4
{[%clk 0:04:33.3]} 15... cxd4 {[%clk 0:03:33.7]} 16. cxd4 {[%clk 0:04:31.8]}
16... dxe4 {[%clk 0:03:32.1]} 17. Nxe4 {[%clk 0:04:31]} 17... Nb5 {[%clk
0:03:18.7]} 18. Be3 {[%clk 0:04:28.1]} 18... f6 {[%clk 0:03:12.2]} 19. Rac1
{[%clk 0:04:25.7]} 19... fxe5 {[%clk 0:03:07.6]} 20. dxe5 {[%clk 0:04:24.4]}
20... Rb8 {[%clk 0:02:59.4]} 21. a4 {[%clk 0:04:23]} 21... Na7 {[%clk
0:02:52.1]} 22. Rc7 {[%clk 0:04:21.3]} 22... Nc8 {[%clk 0:02:40.9]} 23. Bxb6
{[%clk 0:04:06]} 23... Nxb6 {[%clk 0:02:34.9]} 24. Nd6+ {[%clk 0:04:02.6]} 24...
Bxd6 {[%clk 0:02:30.6]} 25. exd6 {[%clk 0:04:01]} 25... Kd8 {[%clk 0:02:26.1]}
26. Rff7 {[%clk 0:03:58.5]} 26... Nd5 {[%clk 0:02:20.7]} 27. Rcd7+ {[%clk
0:03:42.5]} 27... Ke8 {[%clk 0:02:10.7]} 28. Rxg7 {[%clk 0:03:41.1]} 28... Rf8
{[%clk 0:02:04.7]} 29. Rxh7 {[%clk 0:03:38.3]} 29... Nf6 {[%clk 0:02:01.3]} 30.
Rhe7# {[%clk 0:03:35.2]} 1-0

[Event "Live Chess"]
[Site "Chess.com"]
[Date "2024.06.02"]
[Round "-"]
[White "LanceMaster23"]
[Black "ShanthamGrarks"]
[Result "0-1"]
[WhiteElo "1841"]
[BlackElo "1877"]
[TimeControl "300"]
[EndTime "17:59:51 PDT"]
[Termination "ShanthamGrarks won by checkmate"]

1. Nf3 {[%clk 0:04:58.3]} 1... d5 {[%clk 0:04:52.8]} 2. d4 {[%clk 0:04:57.6]}
2... c6 {[%clk 0:04:49.8]} 3. Bf4 {[%clk 0:04:56.8]} 3... Nf6 {[%clk 0:04:48.8]}
4. e3 {[%clk 0:04:55.4]} 4... Bg4 {[%clk 0:04:45.8]} 5. Be2 {[%clk 0:04:53.9]}
5... e6 {[%clk 0:04:43.6]} 6. c3 {[%clk 0:04:51.9]} 6... Bd6 {[%clk 0:04:42]} 7.
Bg3 {[%clk 0:04:50.2]} 7... O-O {[%clk 0:04:37.3]} 8. Nbd2 {[%clk 0:04:48.6]}
8... Bh5 {[%clk 0:04:29.2]} 9. O-O {[%clk 0:04:46.1]} 9... Bxg3 {[%clk
0:04:25.9]} 10. hxg3 {[%clk 0:04:35.5]} 10... Nbd7 {[%clk 0:04:23.1]} 11. Re1
{[%clk 0:04:33.5]} 11... Re8 {[%clk 0:04:19]} 12. Qb3 {[%clk 0:04:31.4]} 12...
Bxf3 {[%clk 0:04:16.3]} 13. Bxf3 {[%clk 0:04:29.6]} 13... b6 {[%clk 0:04:15.2]}
14. e4 {[%clk 0:04:27.9]} 14... dxe4 {[%clk 0:04:10.5]} 15. Nxe4 {[%clk
0:04:27.8]} 15... Nxe4 {[%clk 0:04:09]} 16. Rxe4 {[%clk 0:04:23.4]} 16... Nf6
{[%clk 0:04:05.8]} 17. Re5 {[%clk 0:04:22.1]} 17... Rc8 {[%clk 0:04:01.7]} 18.
Rae1 {[%clk 0:04:20.8]} 18... g6 {[%clk 0:03:55.5]} 19. Qa4 {[%clk 0:04:15]}
19... Qc7 {[%clk 0:03:48.7]} 20. g4 {[%clk 0:04:11.6]} 20... Nd5 {[%clk
0:03:39.2]} 21. g3 {[%clk 0:03:41.9]} 21... b5 {[%clk 0:03:32.2]} 22. Qc2 {[%clk
0:03:28.4]} 22... Nb6 {[%clk 0:03:30.1]} 23. b3 {[%clk 0:03:08.7]} 23... a5
{[%clk 0:03:25.1]} 24. Qd2 {[%clk 0:03:06.6]} 24... a4 {[%clk 0:03:19.2]} 25.
Qh6 {[%clk 0:03:04]} 25... axb3 {[%clk 0:03:13.5]} 26. axb3 {[%clk 0:03:02.7]}
26... Ra8 {[%clk 0:03:11.6]} 27. Be4 {[%clk 0:02:55.5]} 27... Nd5 {[%clk
0:02:48.2]} 28. Kg2 {[%clk 0:02:37.6]} 28... Nxc3 {[%clk 0:02:34.5]} 29. Rh1
{[%clk 0:02:11.9]} 29... f6 {[%clk 0:02:27.8]} 30. Reh5 {[%clk 0:01:46.5]} 30...
Nxe4 {[%clk 0:02:12.8]} 31. Qxh7+ {[%clk 0:01:44.7]} 31... Qxh7 {[%clk 0:02:10]}
32. Rxh7 {[%clk 0:01:44.6]} 32... Ng5 {[%clk 0:02:07.9]} 33. Rc7 {[%clk
0:01:31.6]} 33... Rac8 {[%clk 0:01:59.8]} 34. Rb7 {[%clk 0:01:30.3]} 34... Nf7
{[%clk 0:01:50.7]} 35. Ra1 {[%clk 0:01:20.5]} 35... Ra8 {[%clk 0:01:40.5]} 36.
Rc1 {[%clk 0:01:19.8]} 36... Ra6 {[%clk 0:01:35.8]} 37. f4 {[%clk 0:01:11.2]}
37... Nd6 {[%clk 0:01:26]} 38. Rd7 {[%clk 0:01:05.4]} 38... Ne4 {[%clk
0:01:22.6]} 39. f5 {[%clk 0:01:01.3]} 39... exf5 {[%clk 0:01:20.5]} 40. d5
{[%clk 0:00:58.7]} 40... c5 {[%clk 0:01:11.3]} 41. Rh1 {[%clk 0:00:28.5]} 41...
Ra2+ {[%clk 0:01:09.4]} 42. Kf3 {[%clk 0:00:27.8]} 42... Ng5+ {[%clk 0:01:07.9]}
43. Kf4 {[%clk 0:00:20.9]} 43... Re4# {[%clk 0:01:05.2]} 0-1

[Event "Live Chess"]
[Site "Chess.com"]
[Date "2024.06.02"]
[Round "-"]
[White "PaulyD81"]
[Black "KeithArkell"]
[Result "0-1"]
[WhiteElo "980"]
[BlackElo "2429"]
[TimeControl "300"]
[EndTime "18:00:15 PDT"]
[Termination "KeithArkell won on time"]

1. d4 {[%clk 0:04:57.5]} 1... e6 {[%clk 0:04:58.9]} 2. Bf4 {[%clk 0:04:49]} 2...
Nf6 {[%clk 0:04:57.5]} 3. e3 {[%clk 0:04:44]} 3... c5 {[%clk 0:04:56.3]} 4. c3
{[%clk 0:04:39.5]} 4... cxd4 {[%clk 0:04:55.3]} 5. cxd4 {[%clk 0:04:38]} 5...
Bb4+ {[%clk 0:04:54.1]} 6. Nc3 {[%clk 0:04:29.2]} 6... Nd5 {[%clk 0:04:51.5]} 7.
Qc2 {[%clk 0:03:56.1]} 7... Nxf4 {[%clk 0:04:49.8]} 8. exf4 {[%clk 0:03:55]}
8... Nc6 {[%clk 0:04:48.8]} 9. a3 {[%clk 0:03:51]} 9... Nxd4 {[%clk 0:04:46.5]}
10. Qe4 {[%clk 0:03:31]} 10... Bxc3+ {[%clk 0:04:44.4]} 11. bxc3 {[%clk
0:03:29.3]} 11... Nc6 {[%clk 0:04:42.2]} 12. Nf3 {[%clk 0:03:03.2]} 12... Qa5
{[%clk 0:04:42.1]} 13. Rc1 {[%clk 0:02:42.1]} 13... Qxa3 {[%clk 0:04:39.4]} 14.
Qc2 {[%clk 0:02:25.1]} 14... b6 {[%clk 0:04:31.2]} 15. Be2 {[%clk 0:01:55.1]}
15... Ba6 {[%clk 0:04:29.5]} 16. O-O {[%clk 0:01:38.6]} 16... Bxe2 {[%clk
0:04:28.4]} 17. Qxe2 {[%clk 0:01:38.2]} 17... O-O {[%clk 0:04:27.1]} 18. Ne5
{[%clk 0:01:16.7]} 18... Nxe5 {[%clk 0:04:25.4]} 19. fxe5 {[%clk 0:01:08.6]}
19... Rfc8 {[%clk 0:04:24.4]} 20. Qd3 {[%clk 0:00:50.1]} 20... Rc7 {[%clk
0:04:20.8]} 21. Rfd1 {[%clk 0:00:27.1]} 21... Rac8 {[%clk 0:04:18.5]} 22. c4
{[%clk 0:00:19.1]} 22... Qxd3 {[%clk 0:04:17.1]} 23. Rxd3 {[%clk 0:00:17.5]}
23... Rxc4 {[%clk 0:04:16.3]} 24. Rxc4 {[%clk 0:00:10.2]} 24... Rxc4 {[%clk
0:04:16.2]} 25. Rd1 {[%clk 0:00:06.4]} 25... g5 {[%clk 0:04:08.5]} 26. f3 {[%clk
0:00:04.7]} 26... Rc7 {[%clk 0:04:06.6]} 0-1

[Event "Live Chess"]
[Site "Chess.com"]
[Date "2024.06.02"]
[Round "-"]
[White "Thebigsqueeze"]
[Black "nigelst"]
[Result "1-0"]
[WhiteElo "2277"]
[BlackElo "1728"]
[TimeControl "300"]
[EndTime "18:00:46 PDT"]
[Termination "Thebigsqueeze won by resignation"]

1. d4 {[%clk 0:04:58.2]} 1... Nf6 {[%clk 0:04:58]} 2. c4 {[%clk 0:04:56.6]} 2...
e6 {[%clk 0:04:57.1]} 3. Nc3 {[%clk 0:04:55.9]} 3... Bb4 {[%clk 0:04:56.3]} 4.
e3 {[%clk 0:04:54.7]} 4... Ne4 {[%clk 0:04:53.6]} 5. Ne2 {[%clk 0:04:53.6]} 5...
d6 {[%clk 0:04:50.8]} 6. Qb3 {[%clk 0:04:46.1]} 6... Bxc3+ {[%clk 0:04:48.1]} 7.
Nxc3 {[%clk 0:04:43.3]} 7... Nxc3 {[%clk 0:04:47.1]} 8. Qxc3 {[%clk 0:04:42.5]}
8... Nd7 {[%clk 0:04:46]} 9. Bd3 {[%clk 0:04:41.3]} 9... e5 {[%clk 0:04:44.9]}
10. O-O {[%clk 0:04:39.5]} 10... O-O {[%clk 0:04:42.4]} 11. Qc2 {[%clk
0:04:32.8]} 11... g6 {[%clk 0:04:40.4]} 12. d5 {[%clk 0:04:29.8]} 12... f5
{[%clk 0:04:38]} 13. b4 {[%clk 0:04:24.7]} 13... e4 {[%clk 0:04:35.8]} 14. Be2
{[%clk 0:04:23.1]} 14... Ne5 {[%clk 0:04:34.7]} 15. f4 {[%clk 0:04:21]} 15...
exf3 {[%clk 0:04:32.4]} 16. Bxf3 {[%clk 0:04:20.1]} 16... Nxf3+ {[%clk 0:04:31]}
17. Rxf3 {[%clk 0:04:16.1]} 17... Qf6 {[%clk 0:04:29.8]} 18. Bb2 {[%clk
0:04:14.3]} 18... Qe7 {[%clk 0:04:25.9]} 19. Qc3 {[%clk 0:04:12]} 19... Kf7
{[%clk 0:03:58.5]} 20. e4 {[%clk 0:03:52.5]} 20... Ke8 {[%clk 0:03:56.5]} 21.
exf5 {[%clk 0:03:50.8]} 21... Rxf5 {[%clk 0:03:54.6]} 22. Re1 {[%clk 0:03:49.2]}
22... Re5 {[%clk 0:03:50.6]} 23. Rxe5 {[%clk 0:03:44.6]} 23... dxe5 {[%clk
0:03:47]} 24. Re3 {[%clk 0:03:39.1]} 24... e4 {[%clk 0:03:40.4]} 25. Qd4 {[%clk
0:03:27.4]} 25... Bf5 {[%clk 0:03:38.7]} 26. g4 {[%clk 0:03:24.2]} 26... Qg5
{[%clk 0:03:36.2]} 27. h3 {[%clk 0:03:16.1]} 27... h5 {[%clk 0:03:18.3]} 28.
Qh8+ {[%clk 0:03:03.3]} 28... Kd7 {[%clk 0:03:16]} 29. Qg7+ {[%clk 0:03:02.8]}
29... Kc8 {[%clk 0:02:57.7]} 30. Qf8+ {[%clk 0:02:57.4]} 30... Kd7 {[%clk
0:02:56.7]} 31. Qf7+ {[%clk 0:02:55.9]} 31... Kc8 {[%clk 0:02:54.9]} 32. Qe8+
{[%clk 0:02:53]} 32... Qd8 {[%clk 0:02:52.1]} 33. Qxd8+ {[%clk 0:02:51.9]} 33...
Kxd8 {[%clk 0:02:50.8]} 34. gxf5 {[%clk 0:02:50.4]} 34... gxf5 {[%clk 0:02:50]}
35. Be5 {[%clk 0:02:47.3]} 35... Kd7 {[%clk 0:02:46.6]} 36. Rg3 {[%clk
0:02:45.6]} 36... Rf8 {[%clk 0:02:42.3]} 37. Rg7+ {[%clk 0:02:44]} 37... Kd8
{[%clk 0:02:36.9]} 38. Bxc7+ {[%clk 0:02:42.4]} 38... Kc8 {[%clk 0:02:35.6]} 39.
Bf4 {[%clk 0:02:41.9]} 39... Re8 {[%clk 0:02:31.6]} 40. Kf2 {[%clk 0:02:40]}
40... e3+ {[%clk 0:02:29]} 41. Bxe3 {[%clk 0:02:37.5]} 41... Re4 {[%clk
0:02:27.9]} 42. d6 {[%clk 0:02:30.3]} 42... Rxc4 {[%clk 0:02:25.1]} 43. d7+
{[%clk 0:02:29.4]} 43... Kd8 {[%clk 0:02:23.7]} 44. Bg5+ {[%clk 0:02:29]} 1-0

[Event "Live Chess"]
[Site "Chess.com"]
[Date "2024.06.02"]
[Round "-"]
[White "gobbles19"]
[Black "grillage"]
[Result "1-0"]
[WhiteElo "2261"]
[BlackElo "1857"]
[TimeControl "300"]
[EndTime "18:01:33 PDT"]
[Termination "gobbles19 won on time"]

1. e4 {[%clk 0:04:57.7]} 1... d5 {[%clk 0:04:57.9]} 2. exd5 {[%clk 0:04:55.9]}
2... Qxd5 {[%clk 0:04:54.1]} 3. Nc3 {[%clk 0:04:53.9]} 3... Qd8 {[%clk
0:04:52.8]} 4. d4 {[%clk 0:04:53.5]} 4... Nf6 {[%clk 0:04:51.1]} 5. Bc4 {[%clk
0:04:53]} 5... a6 {[%clk 0:04:49.7]} 6. a4 {[%clk 0:04:51.1]} 6... Nc6 {[%clk
0:04:48.6]} 7. Nf3 {[%clk 0:04:50.6]} 7... Bg4 {[%clk 0:04:47.6]} 8. Be3 {[%clk
0:04:49.4]} 8... e6 {[%clk 0:04:45.3]} 9. h3 {[%clk 0:04:47.4]} 9... Bh5 {[%clk
0:04:35.9]} 10. O-O {[%clk 0:04:41.9]} 10... Nb4 {[%clk 0:04:26.6]} 11. Be2
{[%clk 0:04:31.6]} 11... Bg6 {[%clk 0:04:25]} 12. Rc1 {[%clk 0:04:24.9]} 12...
Bd6 {[%clk 0:04:22.4]} 13. Nh4 {[%clk 0:04:19.9]} 13... c6 {[%clk 0:04:12.8]}
14. Bf3 {[%clk 0:04:16.5]} 14... Qc7 {[%clk 0:04:02.2]} 15. Ne2 {[%clk
0:04:06.5]} 15... Be4 {[%clk 0:03:44.8]} 16. c4 {[%clk 0:03:59.9]} 16... O-O
{[%clk 0:03:28.8]} 17. Qd2 {[%clk 0:03:50.8]} 17... a5 {[%clk 0:03:06.5]} 18. c5
{[%clk 0:03:46.4]} 18... Be7 {[%clk 0:03:04.9]} 19. Nc3 {[%clk 0:03:36.7]} 19...
Bxf3 {[%clk 0:03:02.7]} 20. Nxf3 {[%clk 0:03:36.6]} 20... Rad8 {[%clk
0:02:56.7]} 21. Bf4 {[%clk 0:03:30.7]} 21... Qd7 {[%clk 0:02:48.1]} 22. Rfd1
{[%clk 0:03:28.5]} 22... Nbd5 {[%clk 0:02:39.5]} 23. Nxd5 {[%clk 0:03:25.7]}
23... Nxd5 {[%clk 0:02:36.9]} 24. Bg3 {[%clk 0:03:24.9]} 24... Nb4 {[%clk
0:02:34.3]} 25. Ne5 {[%clk 0:03:20.6]} 25... Qd5 {[%clk 0:02:28.2]} 26. Qe2
{[%clk 0:03:10.3]} 26... Bf6 {[%clk 0:02:13]} 27. Nc4 {[%clk 0:02:56.3]} 27...
Bxd4 {[%clk 0:01:51.2]} 28. Nb6 {[%clk 0:02:52.3]} 28... Qb3 {[%clk 0:01:38.5]}
29. Bd6 {[%clk 0:02:47.2]} 29... Qxb2 {[%clk 0:01:13.7]} 30. Qxb2 {[%clk
0:02:40.6]} 30... Bxb2 {[%clk 0:01:12]} 31. Rb1 {[%clk 0:02:39.4]} 31... Bf6
{[%clk 0:00:39.1]} 32. Bxf8 {[%clk 0:02:36]} 32... Kxf8 {[%clk 0:00:36.3]} 33.
Nc4 {[%clk 0:02:22.4]} 33... Rd5 {[%clk 0:00:29.5]} 34. Nxa5 {[%clk 0:02:16.3]}
34... Nd3 {[%clk 0:00:19.4]} 35. Nxb7 {[%clk 0:02:12.6]} 35... Nxc5 {[%clk
0:00:18.6]} 36. Rxd5 {[%clk 0:02:10.7]} 36... Nxb7 {[%clk 0:00:13.5]} 37. Rd7
{[%clk 0:02:08.8]} 37... Nc5 {[%clk 0:00:12]} 38. Rb8+ {[%clk 0:02:07.9]} 1-0

[Event "Live Chess"]
[Site "Chess.com"]
[Date "2024.06.02"]
[Round "-"]
[White "Dhaydon19"]
[Black "lyricalschemes"]
[Result "1-0"]
[WhiteElo "2682"]
[BlackElo "2277"]
[TimeControl "300"]
[EndTime "18:01:35 PDT"]
[Termination "Dhaydon19 won by resignation"]

1. g3 {[%clk 0:04:58.2]} 1... h5 {[%clk 0:04:58.9]} 2. Bg2 {[%clk 0:04:57.9]}
2... h4 {[%clk 0:04:58.4]} 3. Nf3 {[%clk 0:04:55.6]} 3... h3 {[%clk 0:04:57.3]}
4. Bf1 {[%clk 0:04:54.3]} 4... d5 {[%clk 0:04:54.6]} 5. d4 {[%clk 0:04:51]} 5...
Nf6 {[%clk 0:04:54]} 6. Bf4 {[%clk 0:04:49.2]} 6... e6 {[%clk 0:04:52.4]} 7. c3
{[%clk 0:04:48.5]} 7... Bd6 {[%clk 0:04:51.3]} 8. Nbd2 {[%clk 0:04:47.7]} 8...
Bxf4 {[%clk 0:04:50.3]} 9. gxf4 {[%clk 0:04:46.7]} 9... c5 {[%clk 0:04:50]} 10.
e3 {[%clk 0:04:45.5]} 10... Nc6 {[%clk 0:04:48.8]} 11. Ne5 {[%clk 0:04:43.2]}
11... Qc7 {[%clk 0:04:45.3]} 12. Rg1 {[%clk 0:04:41.4]} 12... g6 {[%clk
0:04:43.9]} 13. Qf3 {[%clk 0:04:39.4]} 13... cxd4 {[%clk 0:04:42]} 14. exd4
{[%clk 0:04:37.8]} 14... Bd7 {[%clk 0:04:37.3]} 15. Bxh3 {[%clk 0:04:35.1]}
15... Nh5 {[%clk 0:04:30.5]} 16. Bf1 {[%clk 0:04:28]} 16... Ne7 {[%clk
0:04:17.5]} 17. Bd3 {[%clk 0:04:23.5]} 17... Rf8 {[%clk 0:03:56.8]} 18. O-O-O
{[%clk 0:04:18.4]} 18... O-O-O {[%clk 0:03:54.4]} 19. Kb1 {[%clk 0:04:16.1]}
19... Kb8 {[%clk 0:03:53.2]} 20. Rc1 {[%clk 0:04:14.5]} 20... Nf5 {[%clk
0:03:47.7]} 21. Bxf5 {[%clk 0:04:11.9]} 21... exf5 {[%clk 0:03:45.6]} 22. Nb3
{[%clk 0:04:10]} 22... Bb5 {[%clk 0:03:38.8]} 23. Rge1 {[%clk 0:03:59.2]} 23...
Nf6 {[%clk 0:03:34.1]} 24. Qe3 {[%clk 0:03:54.5]} 24... Ne4 {[%clk 0:03:32.1]}
25. f3 {[%clk 0:03:52.4]} 25... Nd6 {[%clk 0:03:29.8]} 26. Nc5 {[%clk
0:03:49.8]} 26... Rfe8 {[%clk 0:03:21.2]} 27. Qf2 {[%clk 0:03:42.8]} 27... b6
{[%clk 0:02:53.7]} 28. a4 {[%clk 0:03:39.9]} 28... bxc5 {[%clk 0:02:46.9]} 29.
axb5 {[%clk 0:03:37.8]} 29... c4 {[%clk 0:02:44.3]} 30. Nc6+ {[%clk 0:03:36.2]}
30... Kb7 {[%clk 0:02:43.1]} 31. Nxd8+ {[%clk 0:03:35.7]} 31... Rxd8 {[%clk
0:02:42.7]} 32. Kc2 {[%clk 0:03:31.9]} 32... Nxb5 {[%clk 0:02:41.4]} 33. Ra1
{[%clk 0:03:24.5]} 33... Qxf4 {[%clk 0:02:37.8]} 34. Re7+ {[%clk 0:03:22.7]}
34... Kb6 {[%clk 0:02:36.7]} 35. Qg3 {[%clk 0:03:01.6]} 35... Qxg3 {[%clk
0:02:09]} 36. hxg3 {[%clk 0:02:59.3]} 36... Nd6 {[%clk 0:02:08.7]} 37. Rexa7
{[%clk 0:02:54.1]} 37... Rh8 {[%clk 0:02:05.1]} 38. R1a6+ {[%clk 0:02:51.3]} 1-0